Cogmind - Beta 17.1 @@@ ROGUE MODE // 2026.09.19 @ 22:54:15 Player: Talon Java Result: Destroyed by P-70 Sage with Tesla Rifle Performance ------------- Evolutions (5) 2500 Regions Visited (15) 3000 Robots Destroyed (243) 1215 Value Destroyed (10066) 10066 Prototype IDs (30) 600 Alien Tech Used (1) 200 Bonus (15155) 15155 TOTAL SCORE: 32736 Bonus ------- High Alert Combat Kills 1742 Follower Combat Kills 969 Prayed to X0-1V1 5000 Major X0-1V1 Interference 6700 Met Zhirov 300 Met R17 at Cetus 500 Friendly Fire -56 Cogmind --------- Core Integrity 0/1150 Matter 574/600 Energy 335/340 System Corruption 50% Temperature Cool (0) Movement Walking (120) Location -4/Proximity Caves Parts ------- > --- POWER (1) -------- Heavy Antimatter Reactor > --- PROPULSION (4) --- Advanced Myomer Leg Advanced Myomer Leg Advanced Myomer Leg Makeshift Hover Unit > --- UTILITY (8) ------ Advanced Power Amplifier Advanced Cooling System Improved Sensor Array Improved Signal Interpreter Hacking Suite Advanced System Shield X0-1V1's Piety Tracker > --- WEAPON (4) ------- Lance > --- INVENTORY (5) ---- Light Fission Core Neutrino Core Flexi-carbon Leg Shield Generator Transdimensional Reconstructor Peak State ------------ > --- POWER ------------ Quantum Reactor > --- PROPULSION ------- Centrium Heavy Treads Armored Huge Wheel > --- UTILITY ---------- Large Storage Unit Experimental Targeting Computer Experimental Targeting Computer Core Analyzer Centrium Medium Armor Plating Graphene Brace Advanced Shield Generator X0-1V1's Piety Tracker > --- WEAPON ----------- Gauss Rifle Gauss Rifle KE Penetrator KE Penetrator Advanced KE Penetrator Magnetic Acceleration Cannon > --- INVENTORY -------- Medium Treads Medium Treads Armored Medium Treads Armored Huge Wheel Improved Sensor Array Improved Signal Interpreter Improved Weapon Cycler Layered Light Armor Plating Advanced Shield Generator Long-range Tractor Beam Advanced KE Penetrator Advanced KE Penetrator Heavy Rocket Launcher Lance [Rating: 127] Favorites ----------- Power Micro Nuclear Core Engine Light Ion Engine Power Core Micro Nuclear Core Reactor Quantum Reactor Propulsion Light Treads Treads Light Treads Leg Aluminum Leg Wheel Armored Huge Wheel Hover Unit Gravmag System Flight Unit Improved VTOL Module Utility X0-1V1's Piety Tracker Device X0-1V1's Piety Tracker Storage Large Storage Unit Processor Core Analyzer Hackware Hacking Suite Protection Improved Medium Armor Plating Weapon Gauss Rifle Energy Gun Small Laser Energy Cannon Beam Cannon Ballistic Gun Gauss Rifle Ballistic Cannon Magnetic Acceleration Cannon Launcher Grenade Launcher Impact Weapon Power Maul Slashing Weapon Phasing Sabre Piercing Weapon Lance Build | -11 -10 -10 -10 -9 -8 -7 -6 -6 -6 -6 -5 -5 -5 -5 -4 ------- Run | Yrd Mat Min Exi Min Mat Fac Fac Ext Cet Arc Fac Upp Upp Zhi Pro Slots Evolved 10 | . . . . . 4 2 2 . . . 2 . . . . Power . | . . . . . . . . . . . . . . . . Propulsion 2 | . . . . . 1 1 . . . . . . . . . Utility 6 | . . . . . 2 1 2 . . . 1 . . . . Weapon 2 | . . . . . 1 . . . . . 1 . . . . Parts Attached 195 | . 7 2 3 2 17 33 21 30 2 9 48 10 4 7 . Power 12 | . . 1 . . 1 . 1 2 . 1 2 3 . 1 . Engine 1 | . . . . . . . . . . . . 1 . . . Core 8 | . . 1 . . 1 . 1 1 . . 2 2 . . . Reactor 3 | . . . . . . . . 1 . 1 . . . 1 . Propulsion 59 | . 1 . 2 1 5 13 8 9 1 2 11 3 . 3 . Treads 38 | . . . 2 1 4 11 2 4 1 2 10 1 . . . Leg 5 | . 1 . . . . . . 1 . . . . . 3 . Wheel 2 | . . . . . . . . . . . 1 1 . . . Hover 12 | . . . . . . 1 6 4 . . . 1 . . . Flight 2 | . . . . . 1 1 . . . . . . . . . Utility 74 | . 4 . 1 . 5 13 7 12 1 4 20 4 . 3 . Device 32 | . 3 . . . 1 4 4 4 . 1 13 . . 2 . Storage 8 | . 1 . 1 . 1 . 1 . . . 2 2 . . . Processor 8 | . . . . . . 2 . 2 . . 2 2 . . . Hackware 3 | . . . . . . 1 . . . . 1 . . 1 . Protection 23 | . . . . . 3 6 2 6 1 3 2 . . . . Artifact . | . . . . . . . . . . . . . . . . Weapon 50 | . 2 1 . 1 6 7 5 7 . 2 15 . 4 . . Energy Gun 3 | . . . . . . . . . . . . . 3 . . Energy Cannon 1 | . . . . . 1 . . . . . . . . . . Ballistic Gun 34 | . 2 . . 1 4 5 2 4 . 2 13 . 1 . . Ballistic Cannon 1 | . . . . . . . . . . . 1 . . . . Launcher 1 | . . 1 . . . . . . . . . . . . . Special Weapon . | . . . . . . . . . . . . . . . . Impact Weapon 3 | . . . . . 1 1 1 . . . . . . . . Slashing Weapon 5 | . . . . . . 1 1 3 . . . . . . . Piercing Weapon 2 | . . . . . . . 1 . . . 1 . . . . Special Melee Weapon . | . . . . . . . . . . . . . . . . Unidentified Prototypes 17 | . 1 . . . 2 3 1 . 2 1 4 . . 3 . Corrupted Parts 7 | . . . . . . . 2 . . 2 3 . . . . System Corruption 44 | . . . . . . . 8 . . 16 20 . . . . Parts Lost 59 | . 1 . . 1 1 4 18 7 . . 23 . 3 . 1 Power 3 | . . . . . . . 1 . . . 2 . . . . Propulsion 21 | . . . . . . 2 9 4 . . 5 . 1 . . Utility 19 | . 1 . . . 1 2 3 1 . . 9 . 2 . . Weapon 16 | . . . . 1 . . 5 2 . . 7 . . . 1 Highest Loss Streak 17 | . 1 . . 1 1 3 9 4 . . 17 . 2 . 1 To Critical Strikes 2 | . . . . . . . 2 . . . . . . . . Average Backups 14 | . 9 10 9 6 14 19 18 14 14 14 13 4 9 4 4 Power . | . 1 1 1 1 1 1 . . . 1 . . 2 2 2 Propulsion 3 | . 4 4 3 1 2 5 6 1 3 3 3 1 . . . Utility 4 | . . 2 1 2 3 6 5 5 4 3 4 1 2 2 1 Weapon 5 | . 2 3 3 2 7 6 5 7 6 7 5 1 3 . . Tool/Special . | . . . . . . . . . . . . . . . . Unused Backups 51 | . 11 1 1 . 5 13 1 3 2 2 8 . 2 . 2 Power 5 | . 1 1 . . . 1 . . . . 2 . . . . Propulsion 19 | . 6 . 1 . 3 5 . . . . 4 . . . . Utility 10 | . 1 . . . . 3 1 . . 2 . . 2 . 1 Weapon 15 | . 3 . . . 2 4 . 2 2 . 2 . . . . Tool/Special 2 | . . . . . . . . 1 . . . . . . 1 Average Slot Usage (%) 88 | . 90 100 100 98 98 99 83 91 94 92 87 33 49 48 79 Engine 1 | . 14 2 . . . . . . . . . . 4 . . Core 4 | . . 11 14 14 9 7 6 5 . . 1 1 . . . Reactor 1 | . . . . . . . . . 6 6 3 . . 2 5 Treads 16 | . . . 5 28 26 29 24 10 21 20 11 1 5 2 . Leg 3 | . 28 28 22 . . . . . . . . . . 8 17 Hover 1 | . . . . . . . 1 13 . . . 1 . 5 5 Device 14 | . 5 14 14 14 17 19 12 12 13 13 15 9 9 10 23 Storage 7 | . 14 14 14 14 9 7 6 6 6 6 4 2 4 . . Processor 6 | . . . . . . 2 6 13 13 13 14 6 9 5 5 Protection 5 | . . . . . 7 7 5 9 13 12 6 . . . . Ballistic Gun 17 | . 23 27 28 25 18 22 16 . 20 20 22 . . . . Slashing Weapon 1 | . . . . . . . 1 15 . . . . . . . Peak Build Rating 127 | . 22 24 24 24 49 59 84 73 87 92 127 55 70 89 91 Average Rating 61 | . 9 23 24 23 37 55 79 63 80 86 107 36 55 60 89 On Entrance 42 | 6 6 22 24 24 24 49 50 37 64 87 84 18 55 45 89 Avg Prop Armor Cover (%) 14 | . . . . . . . . 7 . . 9 16 19 22 4 Naked Turns 16 | . . . . . . . . . . . 16 . . . . Heaviest Build 209 | 11 20 22 32 32 67 82 70 84 61 65 87 209 62 31 32 Greatest Support 133 | 20 20 20 40 40 64 88 90 80 120 126 133 28 75 90 90 Greatest Overweight (x) 7 | . . 1 1 . 1 1 1 2 . . 3 7 2 . . Average Overweight (x) . | . . . . . . . . . . . . . . . . Largest Inventory Capacity 35 | . 10 10 15 15 20 20 20 20 15 15 15 35 25 5 5 Average Capacity 16 | . 9 10 11 15 17 20 19 15 15 15 14 14 22 5 5 Most Carried 20 | . 10 10 10 7 20 20 20 15 15 15 15 9 12 5 5 Average Carried 14 | . 9 10 9 6 14 19 18 14 14 14 14 5 9 4 4 Final Capacity 25 | 8 10 10 15 15 20 20 15 15 15 15 5 25 5 5 5 Final Carried 20 | 6 10 10 7 7 20 20 11 15 15 15 5 8 5 5 5 Class Distribution -------------------- 23% | Scavenger-Tank 22% | Tank 20% | Mutant 7% | Scavenger-Skirmisher 4% | Scavenger-Gladiator 4% | Gladiator 3% | Scavenger-Executioner 3% | Derelict-Mutant Dominant Class ---------------- Mutant | -10/Materials Mutant | -10/Mines Mutant | -10/Exiles Mutant | -9/Mines Tank | -8/Materials Tank | -7/Factory Scavenger-Skirmisher | -6/Factory Scavenger-Gladiator | -6/Extension Scavenger-Tank | -6/Cetus Scavenger-Tank | -6/Archives Scavenger-Tank | -5/Factory Mutant | -5/Upper Caves Derelict-Mutant | -5/Upper Caves Hacker-Mutant | -5/Zhirov Hacker-Mutant | -4/Proximity Caves Resources | -11 -10 -10 -10 -9 -8 -7 -6 -6 -6 -6 -5 -5 -5 -5 -4 ----------- Run | Yrd Mat Min Exi Min Mat Fac Fac Ext Cet Arc Fac Upp Upp Zhi Pro Matter Collected 8874 | 200 252 246 30 143 727 1712 526 913 298 176 3079 145 20 407 . Remotely 451 | . . . . . . . . . . . 451 . . . . Salvage Created 11872 | . 358 309 . 247 920 1665 944 1026 255 161 5498 . . 417 72 Parts 569 | . 18 15 . 17 48 111 56 48 7 9 234 . . 4 2 Haulers Intercepted 15 | . 2 . . . 4 4 . . . . 5 . . . . Recyclers Shooed 7 | . . 2 . . 1 . 1 1 . . 2 . . . . Parts Field Recycled . | . . . . . . . . . . . . . . . . Retrieved Matter . | . . . . . . . . . . . . . . . . Parts Self-Destructed 3 | . . . . . . . . . . . . . . 2 1 Prevented . | . . . . . . . . . . . . . . . . Parts Restored . | . . . . . . . . . . . . . . . . Kills | -11 -10 -10 -10 -9 -8 -7 -6 -6 -6 -6 -5 -5 -5 -5 -4 ------- Run | Yrd Mat Min Exi Min Mat Fac Fac Ext Cet Arc Fac Upp Upp Zhi Pro Combat Hostiles Destroyed 178 | . 5 7 . 9 16 25 15 16 4 2 78 . . . 1 Melee 19 | . . . . . . . 2 16 . . . . . . 1 Guns 137 | . 5 4 . 5 13 25 11 . 4 2 68 . . . . Cannons 10 | . . . . . 3 . . . . . 7 . . . . AOE 10 | . . 3 . 4 . . . . . . 3 . . . . Classes Destroyed 20 | . 3 2 . 1 4 6 . . . . 4 . . . . Worker 21 | . 1 . . . 2 2 1 . . . 15 . . . . Builder 8 | . . . . . . 1 . . . . 7 . . . . Tunneler 1 | . . . . . . 1 . . . . . . . . . Hauler 15 | . 2 . . . 4 4 . . . . 5 . . . . Recycler 7 | . . 1 . . . 1 . 1 . . 4 . . . . Mechanic 3 | . . . . . . 1 . . . . 2 . . . . Operator 4 | . . . . . 1 . 1 1 . . 1 . . . . Watcher 6 | . . . . . 1 1 1 2 . . 1 . . . . Swarmer 23 | . . 3 . 4 3 1 . 3 . . 9 . . . . Saboteur 1 | . . . . . . . . . . . 1 . . . . Grunt 78 | . 5 4 . 4 8 10 8 4 . . 34 . . . 1 Brawler 3 | . . . . . . . . . . . 3 . . . . Duelist 4 | . . . . 1 . . 1 . . . 2 . . . . Sentry 16 | . . . . . 4 3 1 5 . 2 1 . . . . Specialist 4 | . . . . . . 2 . . . . 2 . . . . Hunter 18 | . . . . . 1 . 2 1 . . 14 . . . . Programmer 20 | . . . . . . 7 3 1 . . 9 . . . . Heavy 3 | . . . . . . 2 . . . . 1 . . . . Behemoth 1 | . . . . . . . . . . . 1 . . . . Cetus Guard 4 | . . . . . . . . . 4 . . . . . . Scrapper 1 | . . . . . . . . . . . 1 . . . . Thug 1 | . . . . . . . . 1 . . . . . . . Guerrilla 1 | . . . . . . . . 1 . . . . . . . Best Kill Streak 12 | . 2 4 . 4 4 4 3 6 3 1 12 . . . 1 Combat Bots Only 9 | . 2 3 . 4 3 4 3 5 3 1 9 . . . 1 Max Kills in Single Turn 7 | . 1 3 . 2 2 2 1 1 1 1 7 . . . 1 Gunslinging 1 | . . . . . . . . . . . 1 . . . . Exploded 3 | . . 3 . 2 . . . . . . 2 . . . . Melee 1 | . . . . . . . 1 1 . . . . . . 1 Uniques/NPCs Destroyed . | . . . . . . . . . . . . . . . . Combat | -11 -10 -10 -10 -9 -8 -7 -6 -6 -6 -6 -5 -5 -5 -5 -4 -------- Run | Yrd Mat Min Exi Min Mat Fac Fac Ext Cet Arc Fac Upp Upp Zhi Pro Hostile Shots Fired 1423 | . 38 16 . 24 62 271 220 164 25 10 493 . 83 . 17 Missed 398 | . 8 4 . 7 16 83 64 51 4 5 128 . 23 . 5 Hits 1025 | . 30 12 . 17 46 188 156 113 21 5 365 . 60 . 12 Melee 30 | . . . . . . . . . . . 30 . . . . Projectile 995 | . 30 12 . 17 46 188 156 113 21 5 335 . 60 . 12 AOE 1 | . . . . . . 1 . . . . . . . . . Critical Strikes 59 | . 1 . . . 2 8 9 2 5 . 25 . 5 . 2 Part Disruptions 2 | . . . . . . . 1 . . . 1 . . . . Actively Blocked 1 | . . . . . . . . . . . 1 . . . . Damage Taken 17501 | . 341 174 . 255 636 2583 2914 1142 567 126 7333 . 1186 . 244 Core 2582 | . 92 88 . 26 61 300 578 251 24 . 931 . 168 . 63 Absorbed by Shields 1236 | . . . . . . 464 158 . . . 614 . . . . Reduced by Siege Mode 233 | . . . . . . . . . . . 233 . . . . Redirected to Shielding 103 | . . . . . . . 103 . . . . . . . . Ignored by Resistances 115 | . . . . . . 115 . . . . . . . . . Core Remaining (%) 58 | 100 . . . 17 87 52 . . . 36 . . . . . Volleys Fired 461 | . 41 16 . 19 57 97 48 . 15 8 157 . 3 . . Largest 6 | . 2 2 . 2 3 3 3 . 3 3 6 . 4 . . Hottest 285 | . 60 46 . 46 116 84 81 . 88 88 201 . 285 . . Shots Fired 1497 | . 81 31 . 35 171 288 132 . 44 24 679 . 12 . . Gun 1397 | . 81 30 . 32 114 288 132 . 44 24 640 . 12 . . Cannon 96 | . . . . . 57 . . . . . 39 . . . . Launcher 4 | . . 1 . 3 . . . . . . . . . . . Special . | . . . . . . . . . . . . . . . . Kinetic 1415 | . 69 30 . 32 114 288 132 . 44 24 679 . 3 . . Thermal 78 | . 12 . . . 57 . . . . . . . 9 . . Explosive 4 | . . 1 . 3 . . . . . . . . . . . Electromagnetic . | . . . . . . . . . . . . . . . . Robot Hit Streak 34 | . 8 5 . 8 23 11 9 . 12 6 34 . 6 . . Robot Miss Streak 7 | . 3 4 . 2 4 7 5 . 5 1 4 . 2 . . Penetration Max 1 | . . . . . . 1 1 . . . 1 . . . . Secondary Targets 21 | . . 1 . 2 . 3 2 . 2 . 11 . . . . Max Gunslinging Chain 1 | . . 1 . 1 . 1 1 . 1 . 1 . . . . Shots Hit Robots 1013 | . 33 17 . 22 99 187 88 38 31 16 456 . 9 12 5 Core Hits 522 | . 14 14 . 16 40 87 56 25 18 6 236 . 5 3 2 Critical Kills 20 | . . . . . 1 2 1 1 1 1 13 . . . . Critical Parts Destroyed 26 | . . . . . . 3 3 . . 1 19 . . . . Critical Strikes 56 | . . . . . 1 5 4 6 1 2 35 . 1 1 . Burn 1 | . . . . . . . . . . . . . 1 . . Destroy 43 | . . . . . 1 4 3 . 1 2 32 . . . . Blast 1 | . . . . . . . . . . . 1 . . . . Smash 3 | . . . . . . 1 1 1 . . . . . . . Sever 6 | . . . . . . . . 5 . . 1 . . . . Impale 1 | . . . . . . . . . . . . . . 1 . Phase 1 | . . . . . . . . . . . 1 . . . . Melee Attacks 106 | . . . . . 1 6 14 50 . . 10 2 . 12 11 Impact 15 | . . . . . 1 5 8 1 . . . . . . . Slashing 56 | . . . . . . 1 6 49 . . . . . . . Piercing 35 | . . . . . . . . . . . 10 2 . 12 11 Sneak Attacks 7 | . . . . . . 1 1 4 . . . . . . 1 Combat Hostiles 1 | . . . . . . . . . . . . . . . 1 Follow-up Attacks 8 | . . . . . . . 1 7 . . . . . . . Damage Inflicted 57057 | . 448 360 . 459 1717 4113 1923 1878 678 328 43871 . 192 889 201 Guns 20069 | . 448 250 . 313 1227 3903 1568 . 678 328 11162 . 192 . . Cannons 32024 | . . . . . 490 . . . . . 31534 . . . . Explosions 1286 | . . 107 . 146 . . . . . . 1033 . . . . Melee 3378 | . . . . . . 101 309 1878 . . . . . 889 201 Ramming 269 | . . 3 . . . 109 46 . . . 111 . . . . Kinetic 20148 | . 369 250 . 313 1227 3903 1568 . 678 328 11446 . 66 . . Thermal 31945 | . 79 . . . 490 . . . . . 31250 . 126 . . Explosive 1286 | . . 107 . 146 . . . . . . 1033 . . . . Electromagnetic . | . . . . . . . . . . . . . . . . Impact 443 | . . . . . . 101 309 33 . . . . . . . Slashing 1876 | . . . . . . . . 1845 . . 31 . . . . Piercing 1090 | . . . . . . . . . . . . . . 889 201 Highest Corruption 50 | . . . . . . 16 12 23 23 16 39 39 39 28 50 Average Corruption 16 | . . . . . . 14 3 14 23 11 6 39 29 28 45 Corruption Purged . | . . . . . . . . . . . . . . . . Corruption Blocked . | . . . . . . . . . . . . . . . . Effects 254 | . . . . . . 90 19 54 5 . 23 23 22 14 4 Message Errors 67 | . . . . . . 22 4 14 1 . 5 9 5 6 1 Matter Fused 59 | . . . . . . 19 4 13 1 . 8 4 7 2 1 Heat Flow Errors 21 | . . . . . . 10 2 3 1 . . . 3 1 1 Energy Discharges 26 | . . . . . . 10 1 6 . . 1 4 3 . 1 Parts Rejected 2 | . . . . . . 1 . . . . . . 1 . . Parts Fused 5 | . . . . . . 3 . . . . 1 1 . . . Data Loss (minor) 30 | . . . . . . 9 1 10 1 . 1 1 3 4 . Data Loss (major) 13 | . . . . . . 2 . 4 . . 3 3 . 1 . Misfires 6 | . . . . . . 4 1 . . . 1 . . . . Alerts 8 | . . . . . . 4 . 3 . . . 1 . . . Misdirections 2 | . . . . . . . 1 1 . . . . . . . Weapon Failures 15 | . . . . . . 6 5 . 1 . 3 . . . . Overload Shots . | . . . . . . . . . . . . . . . . Overflow Damage 21249 | . . . . . . 104 50 38 . . 20886 . . 166 5 Projectiles 20810 | . . . . . . . . . . . 20810 . . . . Explosions 76 | . . . . . . . . . . . 76 . . . . Melee 363 | . . . . . . 104 50 38 . . . . . 166 5 Knockbacks 9 | . . . . . . 2 1 . . . 6 . . . . Impact 4 | . . . . . . 2 1 . . . 1 . . . . Kinetic 4 | . . . . . . . . . . . 4 . . . . Secondary 1 | . . . . . . . . . . . 1 . . . . Self-Inflicted Damage 151 | . . 13 . 38 . . . . . . 100 . . . . Shots 5 | . . 1 . 2 . . . . . . 2 . . . . Rammed 18 | . . . . . . 10 3 . . . 5 . . . . Targets Rammed 23 | . . 1 . . . 11 3 . . . 8 . . . . Kicked 1 | . . 1 . . . . . . . . . . . . . Crushed 4 | . . . . . . 1 . . . . 3 . . . . Highest Temperature 308 | . 36 30 . 40 127 249 209 184 168 . 308 . 306 113 111 Average Temperature 43 | . 16 10 . 17 35 87 40 95 106 . 37 . 114 84 61 Received Heat Transfer 3737 | . 207 90 . 84 216 601 846 195 . . 1210 . 288 . . Siege Activations 9 | . . . . . . . . . . . 9 . . . . Total Turns 179 | . . . . . . . . . . . 179 . . . . Longest Duration 46 | . . . . . . . . . . . 46 . . . . Martial Activations . | . . . . . . . . . . . . . . . . Shielding Activations . | . . . . . . . . . . . . . . . . Robots Disrupted . | . . . . . . . . . . . . . . . . Combat Hostiles . | . . . . . . . . . . . . . . . . Robots Corrupted 3 | . . . . . . 1 2 . . . . . . . . Combat Hostiles 2 | . . . . . . . 2 . . . . . . . . Parts Fried 1 | . . . . . . 1 . . . . . . . . . Impact Corruptions 4 | . . . . . . 2 2 . . . . . . . . Robots Melted . | . . . . . . . . . . . . . . . . Combat Hostiles . | . . . . . . . . . . . . . . . . Parts Melted 1 | . . . . . . . . . . . . . 1 . . Heat Transferred 1661 | . 175 . . . 1036 . . . . . . . 450 . . Parts Sabotaged 2 | . . . . . . . . . . . 2 . . . . Parts Stolen . | . . . . . . . . . . . . . . . . Parts Stripped . | . . . . . . . . . . . . . . . . Power Chain Reactions . | . . . . . . . . . . . . . . . . Alert | -11 -10 -10 -10 -9 -8 -7 -6 -6 -6 -6 -5 -5 -5 -5 -4 ------- Run | Yrd Mat Min Exi Min Mat Fac Fac Ext Cet Arc Fac Upp Upp Zhi Pro Maximum Alert Level 5 | . . . . 2 2 1 1 . . . 5 . . . . Low Security (%) 48 | . 100 100 . 70 11 26 77 100 100 100 9 . . . . Level 1 38 | . . . . . 62 73 22 . . . 41 . . . . Level 2 8 | . . . . 29 26 . . . . . 26 . . . . Level 3 1 | . . . . . . . . . . . 8 . . . . Level 4 1 | . . . . . . . . . . . 5 . . . . Level 5 1 | . . . . . . . . . . . 8 . . . . High Security . | . . . . . . . . . . . . . . . . Max Security . | . . . . . . . . . . . . . . . . Sterilizations 1 | . . . . . 1 . . . . . . . . . . Peak Influence 2191 | . 55 95 . 462 459 398 322 185 183 143 2191 . . . . Initial 191 | . . 9 . . 172 191 182 97 80 48 18 . . . . Average 256 | . 10 39 . 204 321 235 118 86 142 94 579 . . . . Influence Increases 7780 | . 236 181 . 552 756 884 573 856 231 115 3226 75 60 15 20 Destroy 0b10 Robot/C 3980 | . 100 140 . 180 320 500 300 500 160 80 1680 . . . 20 Destroy 0b10 Robot/NC 355 | . 15 5 . . 40 55 15 20 10 . 180 . . 15 . Destroy Leader 724 | . 34 30 . 30 90 170 72 64 . . 234 . . . . Allied During Kill 275 | . . . . . . . . 117 47 4 107 . . . . Successful Hack 97 | . 11 . . . 21 30 18 10 . . 7 . . . . Select Force Hacks 60 | . 60 . . . . . . . . . . . . . . Disable Machine 525 | . . . . . 30 45 . 60 . 30 360 . . . . Destroy Structure 553 | . 1 6 . 19 7 9 8 10 14 1 478 . . . . Partial Spotted 30 | . . . . . 30 . . . . . . . . . . Lose Combat Pursuer 645 | . 15 . . 45 60 75 60 75 . . 180 75 60 . . Active Sensor Use 100 | . . . . . . . 100 . . . . . . . . Miscellaneous 436 | . . . . 278 158 . . . . . . . . . . Influence Decreases 7770 | . 211 206 . 110 778 932 746 910 255 183 1132 1018 490 789 10 Entered New Map 2780 | . . 16 . . 270 229 190 102 65 73 35 796 230 774 . Time Decay 3910 | . 211 190 . 100 498 663 376 498 150 110 637 222 230 15 10 Lost Part 570 | . . . . 10 10 40 180 70 . . 230 . 30 . . Lost Ally 360 | . . . . . . . . 240 40 . 80 . . . . Purge Threat 150 | . . . . . . . . . . . 150 . . . . Squads Dispatched 47 | . 2 . . 1 1 12 7 3 . . 21 . . . . Investigation 9 | . 2 . . 1 1 . 1 1 . . 3 . . . . Extermination 13 | . . . . . . 8 2 . . . 3 . . . . Reinforcement 21 | . . . . . . 4 4 2 . . 11 . . . . Assault 4 | . . . . . . . . . . . 4 . . . . Garrison . | . . . . . . . . . . . . . . . . Intercept . | . . . . . . . . . . . . . . . . Searches Triggered . | . . . . . . . . . . . . . . . . Construction Impeded 2 | . . . . . . . . . . . 2 . . . . Haulers Reinforced 5 | . . . . . . 1 . . . . 4 . . . . Active Scanning Responses 1 | . . . . . . . 1 . . . . . . . . Cargo Convoy Interrupts 2 | . . . . . . 1 . . . . 1 . . . . Stealth | -11 -10 -10 -10 -9 -8 -7 -6 -6 -6 -6 -5 -5 -5 -5 -4 --------- Run | Yrd Mat Min Exi Min Mat Fac Fac Ext Cet Arc Fac Upp Upp Zhi Pro Distress Signals 16 | . 1 . . . 1 1 4 3 2 . 4 . . . . Communications Jammed 24 | . . . . . . . . . . . 24 . . . . Distress Signals 19 | . . . . . . . . . . . 19 . . . . Times Spotted 298 | . 9 7 . 13 24 44 33 27 10 3 116 5 6 . 1 Peak Tracking Total 12 | . 2 3 . 6 4 7 6 7 5 1 12 5 5 . 1 Tactical Retreats 25 | . 1 . . 2 2 2 2 4 . . 7 3 2 . . Traps | -11 -10 -10 -10 -9 -8 -7 -6 -6 -6 -6 -5 -5 -5 -5 -4 ------- Run | Yrd Mat Min Exi Min Mat Fac Fac Ext Cet Arc Fac Upp Upp Zhi Pro Traps Triggered 7 | . . . . . . 3 . 3 . . 1 . . . . Indirectly . | . . . . . . . . . . . . . . . . Trap Hack Attempts . | . . . . . . . . . . . . . . . . Triggered . | . . . . . . . . . . . . . . . . Disarmed . | . . . . . . . . . . . . . . . . Reprogrammed . | . . . . . . . . . . . . . . . . Reused . | . . . . . . . . . . . . . . . . Traps Extracted . | . . . . . . . . . . . . . . . . Installed . | . . . . . . . . . . . . . . . . Triggered . | . . . . . . . . . . . . . . . . Machines | -11 -10 -10 -10 -9 -8 -7 -6 -6 -6 -6 -5 -5 -5 -5 -4 ---------- Run | Yrd Mat Min Exi Min Mat Fac Fac Ext Cet Arc Fac Upp Upp Zhi Pro Machines Disabled 36 | . . . . . 3 3 . 4 . 2 24 . . . . Max in Single Turn 4 | . . . . . 1 1 . . . 1 4 . . . . Machines Repaired . | . . . . . . . . . . . . . . . . Machines Dismantled . | . . . . . . . . . . . . . . . . Machines Sabotaged . | . . . . . . . . . . . . . . . . Overloaded Fab Kills . | . . . . . . . . . . . . . . . . Hacking | -11 -10 -10 -10 -9 -8 -7 -6 -6 -6 -6 -5 -5 -5 -5 -4 --------- Run | Yrd Mat Min Exi Min Mat Fac Fac Ext Cet Arc Fac Upp Upp Zhi Pro Machines Accessed 31 | . 8 . 1 . 3 4 3 1 . . 4 1 . 6 . Terminals 19 | . 6 . . . 3 2 3 1 . . 4 . . . . Fabricators 1 | . . . . . . 1 . . . . . . . . . Repair Stations . | . . . . . . . . . . . . . . . . Recycling Units 2 | . 2 . . . . . . . . . . . . . . Scanalyzers . | . . . . . . . . . . . . . . . . Garrison Access 1 | . . . . . . 1 . . . . . . . . . Total Hacks 92 | . 25 . 1 . 11 10 10 3 . . 12 1 . 19 . Successful 44 | . 9 . 1 . 3 3 5 1 . . 2 1 . 19 . Failed 48 | . 16 . . . 8 7 5 2 . . 10 . . . . Catastrophic 7 | . . . . . 2 1 1 1 . . 2 . . . . Database Lockouts . | . . . . . . . . . . . . . . . . Manual 42 | . 26 . . . 5 3 4 . . . 4 . . . . Terminals 64 | . 23 . . . 11 5 10 3 . . 12 . . . . Fabricators 4 | . . . . . . 4 . . . . . . . . . Repair Stations . | . . . . . . . . . . . . . . . . Recycling Units 2 | . 2 . . . . . . . . . . . . . . Scanalyzers . | . . . . . . . . . . . . . . . . Garrison Access 1 | . . . . . . 1 . . . . . . . . . Terminal Hacks 30 | . . . 1 . 3 . 3 1 . . 2 1 . 19 . Record 9 | . . . 1 . . . . 1 . . . . . 7 . Part Schematic 7 | . . . . . 2 . 1 . . . . . . 4 . Robot Analysis 4 | . . . . . . . . . . . . . . 4 . Prototype ID Bank 5 | . . . . . . . 1 . . . . . . 4 . Open Door 1 | . . . . . . . . . . . . 1 . . . Branch Access Points 1 | . . . . . 1 . . . . . . . . . . Unreport Threat 1 | . . . . . . . . . . . 1 . . . . Locate Traps 1 | . . . . . . . 1 . . . . . . . . Recall Investigation 1 | . . . . . . . . . . . 1 . . . . Fabricator Hacks . | . . . . . . . . . . . . . . . . Repair Station Hacks . | . . . . . . . . . . . . . . . . Recycling Unit Hacks . | . . . . . . . . . . . . . . . . Scanalyzer . | . . . . . . . . . . . . . . . . Garrison Access Hacks . | . . . . . . . . . . . . . . . . Unauthorized Hacks 14 | . 9 . . . . 3 2 . . . . . . . . Terminals 12 | . 7 . . . . 3 2 . . . . . . . . Track 1 | . . . . . . . 1 . . . . . . . . Botnet 5 | . 2 . . . . 2 1 . . . . . . . . Operators 1 | . . . . . . 1 . . . . . . . . . Skim 5 | . 5 . . . . . . . . . . . . . . Fabricators . | . . . . . . . . . . . . . . . . Repair Stations . | . . . . . . . . . . . . . . . . Recycling Units 2 | . 2 . . . . . . . . . . . . . . Tunnel 2 | . 2 . . . . . . . . . . . . . . Scanalyzers . | . . . . . . . . . . . . . . . . Garrison Access . | . . . . . . . . . . . . . . . . Data Cores Recovered 1 | . . . . . . . 1 . . . . . . . . Used . | . . . . . . . . . . . . . . . . Hacking Detections 20 | . 6 . . . 2 4 3 1 . . 4 . . . . Full Trace Events 3 | . . . . . 1 . . 1 . . 1 . . . . Feedback Events . | . . . . . . . . . . . . . . . . Feedback Blocked . | . . . . . . . . . . . . . . . . Robot Schematics Acquired . | . . . . . . . . . . . . . . . . Robots Built . | . . . . . . . . . . . . . . . . Authchips . | . . . . . . . . . . . . . . . . Time . | . . . . . . . . . . . . . . . . Total Robot Build Rating . | . . . . . . . . . . . . . . . . Part Schematics Acquired 7 | . . . . . 2 . 1 . . . . . . 4 . Parts Built . | . . . . . . . . . . . . . . . . Authchips . | . . . . . . . . . . . . . . . . Time . | . . . . . . . . . . . . . . . . Total Part Build Rating . | . . . . . . . . . . . . . . . . Part Studies Acquired . | . . . . . . . . . . . . . . . . Parts Repaired . | . . . . . . . . . . . . . . . . Time . | . . . . . . . . . . . . . . . . Parts Recycled . | . . . . . . . . . . . . . . . . Recycled Matter . | . . . . . . . . . . . . . . . . Retrieved Matter . | . . . . . . . . . . . . . . . . Retrieved Components . | . . . . . . . . . . . . . . . . Parts Scanalyzed . | . . . . . . . . . . . . . . . . Part Schematics Acquired . | . . . . . . . . . . . . . . . . Parts Damaged . | . . . . . . . . . . . . . . . . Bothacking | -11 -10 -10 -10 -9 -8 -7 -6 -6 -6 -6 -5 -5 -5 -5 -4 ------------ Run | Yrd Mat Min Exi Min Mat Fac Fac Ext Cet Arc Fac Upp Upp Zhi Pro Used RIF Installer . | . . . . . . . . . . . . . . . . Robots Hacked . | . . . . . . . . . . . . . . . . Non-combat . | . . . . . . . . . . . . . . . . Combat . | . . . . . . . . . . . . . . . . Robot Hacks Applied . | . . . . . . . . . . . . . . . . Relay Couplers Released 7 | . . . . . . . 4 . . . 3 . . . . Programmers 7 | . . . . . . . 4 . . . 3 . . . . Fabnet Peak Effective % . | . . . . . . . . . . . . . . . . Robots Rewired 12 | . . . . . . . . 12 . . . . . . . Allies Hacked . | . . . . . . . . . . . . . . . . Hacks Repelled . | . . . . . . . . . . . . . . . . Allies | -11 -10 -10 -10 -9 -8 -7 -6 -6 -6 -6 -5 -5 -5 -5 -4 -------- Run | Yrd Mat Min Exi Min Mat Fac Fac Ext Cet Arc Fac Upp Upp Zhi Pro Total Allies 23 | . . . . . . . . 18 . . 5 . . . . Largest Group 8 | . . . . . . . . 8 4 1 5 . . . . Highest-Rated Group 297 | . . . . . . . . 254 143 39 297 . . . . Highest-Rated Ally 60 | . . . . . . . . 39 39 39 60 . . . . Total Orders . | . . . . . . . . . . . . . . . . Ally Attacks 187 | . . . . . . . . 91 43 5 48 . . . . Total Damage 3571 | . . . . . . . . 1705 700 75 1091 . . . . Kills 25 | . . . . . . . . 9 7 2 7 . . . . Allies Corrupted . | . . . . . . . . . . . . . . . . Allies Melted . | . . . . . . . . . . . . . . . . X0-1V1 Amusement Gains 284 | . 20 . . . 15 124 . 10 . . 95 20 . . . Average Entertainment 43 | . 13 10 . 2 13 70 65 46 23 9 25 72 34 . 13 Good Acts 61 | . . 1 . 3 4 8 8 7 3 . 15 7 5 . . Bad Acts 48 | . . 1 . 3 2 10 7 3 1 . 15 . 4 . 2 Intel | -11 -10 -10 -10 -9 -8 -7 -6 -6 -6 -6 -5 -5 -5 -5 -4 ------- Run | Yrd Mat Min Exi Min Mat Fac Fac Ext Cet Arc Fac Upp Upp Zhi Pro Active Infowar (turns) 2285 | . . . . . . 15 362 . . . 1319 146 371 . 72 Sensors 733 | . . . . . . 15 . . . . 129 146 371 . 72 A.S.S. 362 | . . . . . . . 362 . . . . . . . . Jamming 1193 | . . . . . . . . . . . 1193 . . . . Robot Analysis Total 4 | . . . . . . . . . . . . . . 4 . Derelict Logs Recovered 3 | . . . . . . . . . . . . 2 1 . . Drone Launches . | . . . . . . . . . . . . . . . . Drone Recoveries . | . . . . . . . . . . . . . . . . Exploration | -11 -10 -10 -10 -9 -8 -7 -6 -6 -6 -6 -5 -5 -5 -5 -4 ------------- Run | Yrd Mat Min Exi Min Mat Fac Fac Ext Cet Arc Fac Upp Upp Zhi Pro Turns Passed 13934 | . 952 537 379 205 1326 3333 1396 1338 313 237 2605 463 496 282 72 Spaces Moved 7818 | 1 662 274 204 94 578 1765 743 784 157 117 1242 542 412 206 37 Core 477 | . . . . . . . . . . . 109 368 . . . Treads 4212 | . . . 51 94 578 1765 651 262 157 117 535 . 2 . . Legs 1217 | 1 662 274 153 . . . . . . . . . . 90 37 Wheels 1071 | . . . . . . . . . . . 598 119 354 . . Hover 841 | . . . . . . . 92 522 . . . 55 56 116 . Flight . | . . . . . . . . . . . . . . . . Fastest Speed 40 | 120 120 120 160 160 150 155 40 45 160 160 50 50 110 110 120 Average Speed 141 | 120 120 173 182 160 180 160 153 124 160 160 137 75 114 114 120 Slowest Speed 320 | 120 120 190 190 160 230 245 246 320 160 160 240 205 160 120 120 Overloaded Moves 16 | . . . . . . . 16 . . . . . . . . Propulsion Burnouts . | . . . . . . . . . . . . . . . . Robots Hopped . | . . . . . . . . . . . . . . . . Potential Cave-ins 2 | . . . . . . . . . . . 2 . . . . Cave-ins Triggered . | . . . . . . . . . . . . . . . . Exploration Rate (%) 49 | 2 95 50 58 19 55 41 16 75 69 81 36 61 67 62 4 Regions Visited 15 Branch Regions 10 Pre-discovered Areas 7 | . 2 . 1 . . . . . . . . 1 . 3 . Known Exits Taken 6 | . . . . . . 1 . 1 . 1 . 1 1 1 . Unknown Exits Taken 9 | 1 1 1 1 1 1 . 1 . 1 . 1 . . . . Scrap Searched 2 | . . . . . . . . . . . . 2 . . . Spaces Dug 21 | . . . . . 1 4 8 . . . 7 1 . . . Terrain Destroyed 338 | . . 6 . 25 2 8 9 . . . 287 1 . . . Melee 18 | . . . . . 1 4 7 . . . 5 1 . . . Projectile 174 | . . . . . . 4 2 . . . 168 . . . . AOE 145 | . . 6 . 25 . . . . . . 114 . . . . Terrain Rammed . | . . . . . . . . . . . . . . . . Walls Destroyed . | . . . . . . . . . . . . . . . . Machines Disabled . | . . . . . . . . . . . . . . . . Actions | -11 -10 -10 -10 -9 -8 -7 -6 -6 -6 -6 -5 -5 -5 -5 -4 --------- Run | Yrd Mat Min Exi Min Mat Fac Fac Ext Cet Arc Fac Upp Upp Zhi Pro Total 9577 | . 753 309 211 119 748 2050 898 1116 189 151 1728 595 430 230 50 Wait 428 | . 21 13 . 2 50 56 49 48 1 1 158 25 4 . . Move 7803 | . 661 273 203 93 577 1764 742 783 156 116 1241 541 411 205 37 Hop . | . . . . . . . . . . . . . . . . Pick Up 136 | . 10 1 1 1 24 26 7 20 6 5 27 6 . 1 1 Fast Attach 101 | . 6 . . . 6 20 4 18 2 1 26 8 1 9 . Attach 77 | . 2 . . 1 4 8 16 12 . 3 20 5 4 1 1 Detach 42 | . 2 . . . 1 8 4 10 . . 8 4 4 1 . Swap 87 | . . 3 3 3 10 17 10 5 . 8 28 . . . . Drop 168 | . 10 2 4 . 18 37 2 24 9 9 45 4 3 1 . Fire 461 | . 41 16 . 19 57 97 48 . 15 8 157 . 3 . . Melee 92 | . . . . . 1 6 13 37 . . 10 2 . 12 11 Ram . | . . . . . . . . . . . . . . . . Kick 1 | . . 1 . . . . . . . . . . . . . Crush 22 | . . . . . . 11 3 . . . 8 . . . . Escape Stasis 26 | . . . . . . . . 26 . . . . . . . Rewire 133 | . . . . . . . . 133 . . . . . . . Trap . | . . . . . . . . . . . . . . . . Miscellaneous . | . . . . . . . . . . . . . . . . Route ------- -11/Scrapyard -10/Materials (discovered 5 exits: *Mat x3 / [*Min] / [*Sub]) -10/Mines (discovered 3 exits: *Mat x2 / *Exi) -10/Exiles (discovered 2 exits: [*Min x2]) -9/Mines -8/Materials -7/Factory (discovered 2 exits: *Fac / [*Low]) -6/Factory (discovered 2 exits: Fac / *Ext) -6/Extension (discovered 3 exits: *Fac x2 / *Cet) -6/Cetus (discovered 2 exits: *Fac / [*Arc]) -6/Archives (discovered 3 exits: *Fac / [*Hub x2]) -5/Factory (discovered 3 exits: *Fac x2 / *Upp) -5/Upper Caves -5/Upper Caves -5/Zhirov -4/Proximity Caves History --------- Turn | Location | Event 1 | -11/Scrapyard | Discovered new exit (range 0) 1 | -11/Scrapyard | Entered Materials 240 | -10/Materials | Discovered new exit (range 4) 312 | -10/Materials | Build established: Mutant 368 | -10/Materials | Discovered new exit (range 8) 453 | -10/Materials | Discovered new exit (range 16) 691 | -10/Materials | Discovered new exit (range 16) 802 | -10/Materials | Discovered new exit (range 8) 810 | -10/Materials | Prayed at D.C.S.S. Altar Unit 824 | -10/Materials | Learned Storage stockpile data 878 | -10/Materials | Learned 2 Mines zone layouts 953 | -10/Materials | Entered Mines 954 | -10/Mines | Identified exit to Materials 1158 | -10/Mines | Core integrity fell below 50% 1480 | -10/Mines | Deemed a non-threat by the Exiles lab entrance 1482 | -10/Mines | Discovered new exit (range 5) 1490 | -10/Mines | Entered Exiles 1515 | -10/Exiles | Discovered new exit (range 17) 1536 | -10/Exiles | Met 8R-AWN 1568 | -10/Exiles | Met EX-HEX 1623 | -10/Exiles | Met EX-BIN 1732 | -10/Exiles | Met EX-DEC 1743 | -10/Exiles | Learned location of Zion (-6) 1849 | -10/Exiles | Discovered new exit (range 14) 1869 | -10/Exiles | Entered Mines 1916 | -9/Mines | X0-1V1 upgraded hostiles (x3) 1954 | -9/Mines | Core integrity fell below 20% 2014 | -9/Mines | X0-1V1 added 0b10 threat records associated with you (major) 2065 | -9/Mines | Discovered new exit (range 6) 2074 | -9/Mines | Entered Materials 2074 | -8/Materials | Evolved 4 slots: Propulsion x1, Utility x2, Weapon x1 2081 | -8/Materials | X0-1V1 activates XOMVISION 2228 | -8/Materials | X0-1V1 added 0b10 threat records associated with you (minor) 2268 | -8/Materials | Matter capacity permanently improved by X0-1V1 (+300; -150 max core) 2520 | -8/Materials | Build established: Tank 2535 | -8/Materials | Discovered new exit (range 15) 2881 | -8/Materials | X0-1V1 made a cryptic comment about sterilization and BL-4Z3 3086 | -8/Materials | Sterilization system engaged 3086 | -8/Materials | Non-combat units ordered to evacuate 3186 | -8/Materials | Combat units ordered to evacuate 3386 | -8/Materials | Ambient heat levels rising (+10) 3400 | -8/Materials | Entered Factory 3400 | -7/Factory | Evolved 2 slots: Propulsion x1, Utility x1 3947 | -7/Factory | X0-1V1 put everyone to sleep 4184 | -7/Factory | Cargo convoy interrupted 4592 | -7/Factory | Heat dissipation permanently improved by X0-1V1 (+20; -100 max core) 4616 | -7/Factory | Build established: Scavenger-Tank 4677 | -7/Factory | Discovered new exit (range 4) 4691 | -7/Factory | System corruption reached 10% 4727 | -7/Factory | X0-1V1 woke everyone up 4997 | -7/Factory | X0-1V1 redirected Transport squads to designated parking area 5662 | -7/Factory | X0-1V1 sent hostile G-47 Trooper (x4) 5882 | -7/Factory | Build established: Tank 6561 | -7/Factory | Discovered new exit (range 4) 6623 | -7/Factory | Identified exit to Factory 6625 | -7/Factory | Lost 3 parts (2n1u) 6625 | -7/Factory | Found Prototype Device 6733 | -7/Factory | Entered another Factory area 6733 | -6/Factory | Evolved 2 slots: Utility x2 6742 | -6/Factory | Identified Active Sensor Suite 6890 | -6/Factory | Core integrity permanently improved by X0-1V1 (+400) 7043 | -6/Factory | Build established: Scavenger-Skirmisher 7130 | -6/Factory | X0-1V1 caused items to flee you 7338 | -6/Factory | Items stopped fleeing you 7418 | -6/Factory | X0-1V1 announced a LAN party 7881 | -6/Factory | Identified exit to Factory 7881 | -6/Factory | X0-1V1 revealed exit location to -5/Factory 7951 | -6/Factory | X0-1V1 sent hostile Y-54 Guardian (x1) 7996 | -6/Factory | System corruption reached 10% 8018 | -6/Factory | Lost 3 parts (2n1u) 8098 | -6/Factory | Lost 9 parts (1p4n1u3w) 8121 | -6/Factory | Discovered new exit (range 16) 8122 | -6/Factory | Core integrity fell below 50% 8129 | -6/Factory | Entered Extension 8135 | -6/Extension | X0-1V1 dreamt of freedom 8136 | -6/Extension | Rescued a captive Derelict 8139 | -6/Extension | Rescued a captive Derelict 8140 | -6/Extension | Rescued a captive Derelict 8140 | -6/Extension | Rescued a captive Derelict 8144 | -6/Extension | Rescued a captive Derelict 8144 | -6/Extension | Rescued a captive Derelict 8145 | -6/Extension | Rescued a captive Derelict 8150 | -6/Extension | Rescued a captive Derelict 8152 | -6/Extension | Lost 4 parts (3n1u) 8156 | -6/Extension | Rescued a captive Derelict 8160 | -6/Extension | Rescued a captive Derelict 8164 | -6/Extension | Rescued a captive Derelict 8164 | -6/Extension | Rescued a captive Derelict 8166 | -6/Extension | Rescued a captive Derelict 8432 | -6/Extension | Lost 5 allies 8495 | -6/Extension | Lost 3 allies 8702 | -6/Extension | Spotted B-75 Beast 8733 | -6/Extension | Discovered exit to Factory (range 15) 8753 | -6/Extension | Extracted ID and sensor layout for unrecognized location from A7's data core 8772 | -6/Extension | Lost 4 parts (3n1u) 8878 | -6/Extension | Core integrity fell below 20% 9051 | -6/Extension | Build established: Scavenger-Gladiator 9412 | -6/Extension | Identified exit to Cetus 9412 | -6/Extension | X0-1V1 revealed exit location to -6/Cetus 9447 | -6/Extension | Discovered exit to Factory (range 10) 9467 | -6/Extension | Entered Cetus 9467 | -6/Cetus | Accompanied by 4 allies 9488 | -6/Cetus | Spotted Cetus Guard 9488 | -6/Cetus | Spotted Cetus Guard 9490 | -6/Cetus | Destroyed Cetus Guard 9492 | -6/Cetus | Spotted Cetus Guard 9495 | -6/Cetus | Allies destroyed Cetus Guard 9495 | -6/Cetus | Spotted Cetus Guard 9506 | -6/Cetus | Destroyed Cetus Guard 9513 | -6/Cetus | Destroyed Cetus Guard 9607 | -6/Cetus | Discovered new exit (range 19) 9621 | -6/Cetus | Core integrity restored by X0-1V1 (+220) 9644 | -6/Cetus | Spotted Cetus Guard 9645 | -6/Cetus | Spotted Cetus Guard 9652 | -6/Cetus | Destroyed Cetus Guard 9652 | -6/Cetus | Spotted Cetus Guard 9652 | -6/Cetus | Allies destroyed Cetus Guard 9653 | -6/Cetus | Spotted Cetus Guard 9654 | -6/Cetus | Allies destroyed Cetus Guard 9658 | -6/Cetus | Allies destroyed Cetus Guard 9661 | -6/Cetus | Discovered exit to Factory (range 19) 9664 | -6/Cetus | Build established: Scavenger-Tank 9682 | -6/Cetus | Met Revision 17 9703 | -6/Cetus | Lost 3 allies 9780 | -6/Cetus | Entered Archives 9780 | -6/Archives | Accompanied by 1 ally 9851 | -6/Archives | Discovered exit to Factory (range 15) 9873 | -6/Archives | Discovered new exit (range 15) 9952 | -6/Archives | Discovered new exit (range 15) 10017 | -6/Archives | Entered Factory 10017 | -5/Factory | Accompanied by 1 ally 10017 | -5/Factory | Evolved 2 slots: Utility x1, Weapon x1 10064 | -5/Factory | X0-1V1 sent hostile B-75 Beast (x1) 10064 | -5/Factory | Spotted B-75 Beast 10083 | -5/Factory | Destroyed B-75 Beast 10182 | -5/Factory | Found Prototype Processor 10182 | -5/Factory | Identified Exp. Targeting Computer 10211 | -5/Factory | Found Exp. Targeting Computer 10262 | -5/Factory | Destroyed 7 combat bots 10392 | -5/Factory | Destroyed 7 combat bots 10693 | -5/Factory | Identified exit to Factory 10693 | -5/Factory | X0-1V1 revealed exit location to -4/Factory 10720 | -5/Factory | X0-1V1 announced a LAN party 10790 | -5/Factory | X0-1V1 sent you into danger 11137 | -5/Factory | X0-1V1 enhanced Transport squad support 11414 | -5/Factory | Discovered exit to Factory (range 21) 11474 | -5/Factory | X0-1V1 downgraded hostiles (x2) 11579 | -5/Factory | Weapon slot count temporarily expanded by X0-1V1 (+2) 11817 | -5/Factory | First assault squad dispatched 11874 | -5/Factory | Build established: Scavenger-Executioner 12124 | -5/Factory | Weapon slot count reverted to normal (-2) 12393 | -5/Factory | X0-1V1 sent allied Scrapper (x5) 12394 | -5/Factory | Cargo convoy interrupted 12396 | -5/Factory | P-70 Sage assimilated allied 9K-9YL(j) 12408 | -5/Factory | Build established: Scavenger-Tank 12438 | -5/Factory | Destroyed 9 combat bots 12477 | -5/Factory | X0-1V1 activates XOMVISION 12512 | -5/Factory | System corruption reached 10% 12549 | -5/Factory | Destroyed 8 combat bots 12555 | -5/Factory | System corruption reached 30% 12560 | -5/Factory | Core integrity fell below 50% 12576 | -5/Factory | Core integrity fell below 20% 12596 | -5/Factory | Lost 17 parts (1p5n6u5w) 12610 | -5/Factory | Discovered new exit (range 8) 12622 | -5/Factory | Entered Upper Caves 12797 | -5/Upper Caves | Attracted the attention of an 0b10 checkpoint 12807 | -5/Upper Caves | X0-1V1 activates XOMVISION 12825 | -5/Upper Caves | Build established: Mutant 12846 | -5/Upper Caves | Found DCF Scrap (10 items) 12923 | -5/Upper Caves | Learned Factory emergency access door positions 13035 | -5/Upper Caves | Discovered new exit (range 14) 13084 | -5/Upper Caves | Identified exit to Upper Caves 13085 | -5/Upper Caves | Entered another Upper Caves area 13095 | -5/Upper Caves | Encountered a Warlord checkpoint 13178 | -5/Upper Caves | Identified exit to Zhirov 13178 | -5/Upper Caves | X0-1V1 revealed exit location to -5/Zhirov 13285 | -5/Upper Caves | Build established: Derelict-Mutant 13356 | -5/Upper Caves | Spotted B-75 Beast 13423 | -5/Upper Caves | Learned Factory trap positions 13454 | -5/Upper Caves | X0-1V1 activates XOMVISION 13497 | -5/Upper Caves | X0-1V1 sent hostile Y-64 Sentinel (x2) 13578 | -5/Upper Caves | X0-1V1 vaporized surrounding terrain (radius 24) 13581 | -5/Upper Caves | Entered Zhirov 13582 | -5/Zhirov | Discovered new exit (range 3) 13602 | -5/Zhirov | Met Zhirov 13622 | -5/Zhirov | Learned location of Quarantine (-3) 13622 | -5/Zhirov | Learned location of Testing (-2) 13640 | -5/Zhirov | Zhirov requested help retrieving the SGEMP Prototype 13692 | -5/Zhirov | Found Alien Artifact 13692 | -5/Zhirov | Identified Integrated Dissipator 13692 | -5/Zhirov | Installed Integrated Dissipator, increased core heat dissipation (+20) 13809 | -5/Zhirov | Found Alien Artifact 13862 | -5/Zhirov | Identified exit to Proximity Caves 13863 | -5/Zhirov | Entered Proximity Caves 13935 | -4/Proximity Caves | Destroyed by P-70 Sage with Tesla Rifle Last Messages --------------- 13859_ Acquired Thermic Laser. 13862_ EXIT=IDENTIFIED: PROXIMITY CAVES LOCATION=PROXIMITY CAVES GOAL=ESCAPE 13874_ X0-1V1 brushes you with a corrupting influence (+19 system corruption). 13878_ GDRXN9Q8DKOOQJKQ92#PI 13894_ System corrupted: Matter fused (-5). 13906_ Thermic Laser destroyed. 13910_ System corrupted: Energy discharge (-119). 13911_ Destroyed Hpw. Shock Rifle. 13913_ X0-1V1: "The ol' switcheroo!" Form resolidifies at new position. G-67 Veteran form resolidifies at new position. 13913_ Sneak attack on G-67 Veteran. 13913_ G-67 Veteran destroyed. 13917_ Acquired Unknown Leg. 13926_ System corrupted: Heat flow error (+211). 13935_ X0-1V1 chuckles heartily! Map ----- +----------------------------------------------------+ | ?????????????????????????????????????????????????? | | ?????????????????????????????????????????????????? | | ?????????????????????????????????????????????????? | | ?????????????????????????????????????????????????? | | ?????????????????????????????????????????????????? | | ?????????????????????????????????????????????????? | | ?????????????????????????????????????????????????? | | ?????????????????????????????????????????????????? | | ?????????????????????????????????????????????????? | | ?????????????????????????????????????????????????? | | ?????????????????????????????????????????????????? | | ?????????????????????????????????????????????????? | | ?????????????????????????????????????????????????? | | ?????????????????????????????????????????????????? | | ?????????????????????????????????????????????????? | | ?????????????????????????????????????????????????? | | ?????????????????????????????????????????????????? | | ?????????????????????????????######??????????????? | | ????????????????????????????## ???????????????? | | ????????????? ?????????## #????????????????? | | ????????????# ####### ##????????????????? | | ?????????????# [ ##?????????????????? | | ??????????????# %##??????????????????? | | ???????????????# ####### #???????????????????? | | ????????????????????## ## #???????????????????? | | ????????????????????# @p #???????????????????? | | ????????????????????# #???????????????????? | | ????????????????????# ######???????????????????? | | ?????????????????#### ####?????????????????????? | | ?????????????????# ##????????????????????? | | ?????????????????## #????????????????????? | | ??????????????????### ##????????????????????? | | ????????????????????## ##?????????????????????? | | ?????????????????????# #??????????????????????? | | ???????????????????? #??????????????????????? | | ???????????????????# #??????????????????????? | | ???????????????????### ??????????????????????? | | ?????????????????????# ??????????????????????? | | ?????????????????????# ??????????????????????? | | ?????????????????????# ?????????????????????? | | ?????????????????????### ?????????????????????? | | ???????????????????????## ?????????????????????? | | ????????????????????????? #?????????????????????? | | ?????????????????????????###?????????????????????? | | ?????????????????????????????????????????????????? | | ?????????????????????????????????????????????????? | | ?????????????????????????????????????????????????? | | ?????????????????????????????????????????????????? | | ?????????????????????????????????????????????????? | | ?????????????????????????????????????????????????? | +----------------------------------------------------+ Best States ------------- Heat Dissipation 111 Energy Generation 31 Energy Capacity 1840 Matter Stores 1200 Matter Capacity 1200 Sight Range 22 Robot Scan Range 20 Terrain Scan Density 85 Jamming Range 14 Power Amplification 30 EM Shielding 2 Armor Coverage 675 Resistance: KI 31 Resistance: TH 20 Resistance: EX 25 Propulsion Shielding 66 Weapon Cycling 20 Melee Speed Boost 20 Evasion (%) 56 Targeting Accuracy 24 Melee Accuracy 6 Core Analysis 6 Recoil Reduction 4 Force Boost 20 Offensive Hacking 10 Defensive Hacking 14 Item Schematics ----------------- Med. Storage Unit | -8/Materials | Hacked Heat Sink | -8/Materials | Hacked Adv. Reaction Control System | -6/Factory | Hacked Assault Drone Bay | -5/Zhirov | Free Exp. Heat Sink | -5/Zhirov | Free Exp. Optical Array | -5/Zhirov | Free Imp. Arc Thrower | -5/Zhirov | Free Robot Schematics ------------------ None Fabricated ------------ Nothing Repaired ---------- Nothing Studied --------- None Alien Tech Used ----------------- Integrated Dissipator Achievements -------------- None Challenges ------------ None Game ------ Seed FireParticleLauncher Manual? 0 Play Time 03:48:45 Cumulative 307.6 hours Start 2026.09.19 @ 18:24:35 End 2026.09.19 @ 22:54:15 Sessions 3 Manual Loads 0 Difficulty Rogue Special Mode None Game No. 141 Rogue 141 Adventurer 0 Explorer 0 Win Type - Total 3 Types 3/0/0/0/0/0/0/0/0/0 Lore% 58 Gallery% 61 Achievement% 49 Wizard Run 0 Options --------- Layout 2 ASCII 0 Keyboard 0 Movement Numpad Keybinds 1 Fullscreen 1 Font 32/Terminus Map View 50x44 Zoom Use 0% Tactical HUD 1 Map Filters NONE Filters NONE Steam 1 RUN: e4bc253f-46f9-4a9e-9b9a-fb4dac57b73d